bitfinex/quotes_ETHUSD_20230103
["timestamp","ask_amount","ask_price","bid_price","bid_amount"]
[1672725442536,6.11104298,1219.2,1219.1,21.83147589]
[1672725442940,6.11104298,1219.2,1219.1,0.50427589]
[1672725443294,6.10872744,1219.2,1219.1,0.50190769]
[1672725443516,11.10872744,1219.2,1219.1,0.50190769]
[1672725452796,11.10872744,1219.2,1219.1,0.48394733]
[1672725453015,11.10872744,1219.2,1219.1,0.44656822]
[1672725453968,11.10872744,1219.2,1218.9,9.86188017]
[1672725454158,10.0904284,1219.1,1218.9,12.20854107]
[1672725454370,5.0904284,1219.1,1218.9,12.20854107]
[1672725455312,5.0904284,1219.0,1218.9,12.20854107]
[1672725455519,10.0904284,1219.0,1218.9,12.20854107]
[1672725455951,9.30961875,1219.0,1218.9,12.20854107]
[1672725456160,9.30961875,1219.0,1218.9,2.82884107]
[1672725456368,9.30961875,1219.0,1218.9,0.48218017]
[1672725456600,9.30961875,1219.0,1218.9,5.48218017]
[1672725457036,4.30961875,1219.0,1218.9,5.48218017]
[1672725458102,4.30961875,1219.0,1218.9,0.48218017]
[1672725458630,4.30961875,1219.0,1218.9,0.89181682]
[1672725459199,4.30961875,1219.0,1218.9,2.0242185]
[1672725460464,9.30961875,1219.0,1218.9,2.0242185]
[1672725461844,9.30961875,1219.0,1218.9,1.96887903]
[1672725463598,5.0,1219.0,1218.9,1.96887903]
[1672725464155,9.30998574,1219.0,1218.9,1.96887903]
[1672725464365,9.30998574,1219.0,1218.9,1.96603309]
[1672725466638,4.30998574,1219.0,1218.9,1.96603309]
[1672725467522,9.30998574,1219.0,1218.9,1.96603309]
[1672725469659,9.25998574,1219.0,1218.9,1.96603309]
[1672725471259,4.25998574,1219.0,1218.9,3.78203309]
[1672725471469,0.066,1219.1,1218.9,15.72432398]
[1672725471783,0.066,1219.1,1219.0,8.604]
[1672725471942,5.066,1219.1,1219.0,10.29977952]
[1672725472153,5.066,1219.1,1219.0,11.31445983]
[1672725472360,0.066,1219.1,1219.0,11.31445983]
[1672725474194,0.016,1219.1,1219.0,10.29977952]
[1672725474632,4.32464802,1219.1,1219.0,10.29977952]
[1672725475168,4.32464802,1219.1,1219.0,5.29977952]
[1672725475751,4.32464802,1219.1,1219.0,10.29977952]
[1672725476583,4.32464802,1219.1,1219.0,10.792935]
[1672725477465,4.32464802,1219.1,1219.0,14.94179614]
[1672725477636,0.016,1219.1,1219.0,17.77947645]
[1672725479311,0.002,1219.1,1219.0,17.83481592]
[1672725480210,0.002,1219.1,1219.0,20.83481592]
[1672725480379,0.002,1219.1,1219.0,26.38934474]
[1672725480594,0.002,1219.1,1219.0,20.83481592]
[1672725480801,0.002,1219.1,1219.0,19.82013561]
[1672725481245,0.002,1219.1,1219.0,25.37260945]
[1672725481423,0.002,1219.1,1219.0,19.82013561]
[1672725485980,0.002,1219.1,1219.0,20.24661833]
[1672725489660,4.31064802,1219.1,1219.0,14.75346285]
[1672725490221,4.31064802,1219.1,1219.0,5.17760171]
[1672725492268,0.002,1219.1,1219.0,5.17760171]
[1672725492516,0.002,1219.1,1219.0,10.17760171]
[1672725492856,0.002,1219.1,1219.0,11.99360171]
[1672725493956,4.31064802,1219.1,1219.0,6.99360171]
[1672725495418,4.31064802,1219.1,1219.0,6.99114938]
[1672725497738,4.31064802,1219.1,1219.0,5.17514938]
[1672725499305,4.30864802,1219.1,1219.0,5.17514938]
[1672725500293,4.30864802,1219.1,1219.0,3.48182219]
[1672725501551,4.30864802,1219.1,1219.0,0.48182219]
[1672725504030,9.30864802,1219.1,1219.0,0.48182219]
[1672725505832,9.30864802,1219.1,1219.0,5.48182219]
[1672725506076,9.30864802,1219.1,1219.0,0.48182219]
[1672725506458,4.30864802,1219.1,1219.0,0.48182219]
[1672725508978,4.30864802,1219.1,1219.0,0.42648272]
[1672725511501,4.32664802,1219.2,1219.0,0.65648272]
[1672725511880,4.32664802,1219.2,1219.0,7.46748272]
[1672725512064,4.32664802,1219.2,1219.0,9.79632939]
[1672725517336,4.32664802,1219.2,1219.0,9.79431828]
[1672725518296,0.018,1219.2,1219.1,11.52001662]
[1672725518603,5.018,1219.2,1219.1,11.52001662]
[1672725518812,0.018,1219.2,1219.1,12.35864527]
[1672725519232,0.018,1219.2,1219.1,12.77374148]
[1672725521133,0.018,1219.2,1219.1,8.62488034]
[1672725523003,0.018,1219.2,1219.1,51.27928034]
[1672725526934,4.64036502,1219.3,1219.1,51.33461981]
[1672725529800,4.64036502,1219.3,1219.1,40.67101981]
[1672725532089,0.37087502,1219.4,1219.1,40.67101981]
[1672725532509,0.37087502,1219.4,1219.3,42.6474]
[1672725532737,5.37087502,1219.4,1219.3,47.41214]
[1672725532929,5.32087502,1219.4,1219.3,47.41214]
[1672725533164,5.32087502,1219.4,1219.3,36.75029]
[1672725535434,5.0,1219.4,1219.3,21.3237]
[1672725535626,10.0904284,1219.4,1219.3,10.66185]
[1672725535937,10.7063284,1219.4,1219.2,21.32439]
[1672725537736,5.0904284,1219.3,1219.2,21.32439]
[1672725537884,10.0904284,1219.3,1219.2,21.32439]
[1672725538533,5.0,1219.3,1219.2,21.32439]
[1672725538733,5.0,1219.3,1219.2,31.98711]
[1672725538944,9.30359625,1219.3,1219.2,31.98711]
[1672725540656,9.30359625,1219.3,1219.2,33.743914]
[1672725541024,9.3041307,1219.3,1219.2,33.743914]
[1672725543232,4.3041307,1219.3,1219.2,33.743914]
[1672725545245,9.3041307,1219.3,1219.2,33.743914]
[1672725546926,9.3041307,1219.3,1219.2,33.79925347]
[1672725547699,5.0,1219.3,1219.2,10.71740947]
[1672725547914,10.0904284,1219.3,1219.2,21.38012947]
[1672725548066,10.0904284,1219.3,1219.2,10.71740947]
[1672725548501,10.0904284,1219.3,1219.2,21.38012947]
[1672725549781,5.0,1219.3,1219.2,0.05533947]
[1672725550014,11.10872744,1219.3,1219.2,0.05533947]
[1672725550381,10.0,1219.3,1219.2,0.05533947]
[1672725550589,16.1065651,1219.3,1219.2,0.05533947]
[1672725551965,17.9195651,1219.3,1219.2,0.05533947]
[1672725552175,17.9173651,1219.3,1219.2,0.05533947]
[1672725552600,18.5332651,1219.3,1219.2,0.05533947]
[1672725554157,13.5332651,1219.3,1219.2,0.05533947]
[1672725555327,13.5332651,1219.3,1219.2,0.05192306]
[1672725555540,13.5332651,1219.3,1219.2,21.37736306]
[1672725555744,13.5332651,1219.3,1219.2,10.71464306]
[1672725556105,13.5332651,1219.3,1219.2,0.05192306]
[1672725557229,12.9173651,1219.3,1219.2,0.05192306]
[1672725558260,13.5332651,1219.3,1219.2,0.43864887]
[1672725558526,5.6159,1219.3,1219.2,21.76408887]
[1672725558833,5.6159,1219.3,1219.2,0.43864887]
[1672725559047,11.7202651,1219.3,1219.2,0.43864887]
[1672725560142,5.6159,1219.3,1219.2,0.43864887]
[1672725561014,5.6159,1219.3,1219.2,11.10136887]
[1672725561224,10.69789179,1219.3,1219.2,21.76408887]
[1672725561440,10.69789179,1219.3,1219.2,25.00686276]
[1672725561675,10.69789179,1219.3,1219.2,14.34414276]
[1672725561882,10.08199179,1219.3,1219.2,14.34414276]
[1672725562824,10.08199179,1219.3,1219.2,25.00686276]
[1672725563351,10.08199179,1219.3,1219.2,35.66958276]
[1672725563665,5.0,1219.3,1219.2,25.00686276]
[1672725565455,9.30225431,1219.3,1219.2,35.66958276]
[1672725565816,5.0,1219.3,1219.2,41.72902272]
[1672725566193,5.0,1219.3,1219.2,50.93488386]
[1672725566382,5.0,1219.3,1219.2,45.36859938]
[1672725566721,4.95,1219.3,1219.2,45.36859938]
[1672725567095,4.36825431,1219.4,1219.2,45.36859938]
[1672725567304,0.066,1219.4,1219.3,5.0]
[1672725567521,5.066,1219.4,1219.3,42.57903839]
[1672725568253,0.066,1219.4,1219.3,42.57903839]
[1672725569507,0.066,1219.4,1219.3,42.98228874]
[1672725576221,0.066,1219.4,1219.3,45.98228874]
[1672725579225,0.066,1219.4,1219.3,40.98228874]
[1672725582505,4.36825431,1219.4,1219.3,40.98228874]
[1672725582871,0.066,1219.4,1219.3,40.98228874]
[1672725583130,4.36825431,1219.4,1219.3,40.98228874]
[1672725583360,0.066,1219.4,1219.3,40.98228874]
[1672725586255,4.64878725,1219.5,1219.3,40.98228874]
[1672725586256,4.64878725,1219.5,1219.3,41.0342118]
[1672725586797,4.64878725,1219.5,1219.3,41.03096731]
[1672725588944,4.64878725,1219.5,1219.3,30.36911731]
[1672725589974,4.64878725,1219.5,1219.3,41.03096731]
[1672725593857,4.30225431,1219.4,1219.3,41.03096731]
[1672725594839,5.0,1219.4,1219.3,3.05192306]
[1672725595137,9.2988069,1219.4,1219.3,24.37562306]
[1672725595572,9.2988069,1219.4,1219.3,35.03747306]
[1672725599917,5.0,1219.4,1219.3,35.03747306]
[1672725600165,4.96034,1219.4,1219.3,35.45634749]
[1672725600608,10.04233179,1219.4,1219.3,35.45634749]
[1672725601763,4.96034,1219.4,1219.3,37.44320547]
[1672725601911,10.04233179,1219.4,1219.3,37.44320547]
[1672725602347,5.08199179,1219.4,1219.3,37.44320547]
[1672725602576,10.08199179,1219.4,1219.3,37.44320547]
[1672725602844,10.08199179,1219.4,1219.3,37.82375137]
[1672725602985,5.0,1219.4,1219.3,37.82375137]
[1672725603436,10.08199179,1219.4,1219.3,37.82375137]
[1672725603910,10.08199179,1219.4,1219.3,16.50005137]
[1672725604126,10.08199179,1219.4,1219.3,27.16190137]
[1672725604333,10.08199179,1219.4,1219.3,37.82375137]
[1672725604581,10.08199179,1219.4,1219.3,27.16190137]
[1672725604912,10.08199179,1219.4,1219.3,37.82375137]
[1672725605129,5.0,1219.4,1219.3,37.82375137]
[1672725605647,10.08199179,1219.4,1219.3,37.82375137]
[1672725606539,5.0,1219.4,1219.3,37.82375137]
[1672725606765,10.08199179,1219.4,1219.3,37.82375137]
[1672725606969,3.05203173,1219.4,1219.3,41.97261251]
[1672725607223,5.70485458,1219.6,1219.4,10.081]
[1672725607224,0.52723992,1219.6,1219.4,10.081]
[1672725607435,0.06,1219.9,1219.5,7.37886114]
[1672725607661,5.08739146,1219.9,1219.6,4.14886114]
[1672725607797,3.6991715,1220.0,1219.8,31.97244]
[1672725608007,5.08798813,1219.9,1219.8,4.081814]
[1672725608266,11.58186117,1220.0,1219.7,14.27369]
[1672725608483,5.08819875,1219.8,1219.7,10.65799]
[1672725608921,10.70389875,1219.8,1219.5,22.3966]
[1672725609222,5.08375594,1219.7,1219.5,13.5222823]
[1672725609372,5.69945594,1219.7,1219.5,10.65996]
[1672725609581,7.52645594,1219.7,1219.4,21.3207]
[1672725609838,5.0,1219.6,1219.4,21.3207]
[1672725610043,7.52645594,1219.7,1219.4,21.3207]
[1672725611051,2.4427,1219.7,1219.4,21.3207]
[1672725611285,0.6157,1219.7,1219.4,27.04249814]
[1672725611496,13.70825594,1219.8,1219.4,27.04249814]
[1672725611737,13.70825594,1219.8,1219.4,27.53565362]
[1672725612220,8.6245,1219.8,1219.4,31.68451476]
[1672725612427,8.0088,1219.8,1219.5,8.0]
[1672725612751,8.0088,1219.8,1219.6,31.97769]
[1672725612992,12.52635594,1219.9,1219.6,31.97769]
[1672725613333,10.08375594,1219.9,1219.6,36.61970662]
[1672725613557,10.08375594,1219.9,1219.6,43.13511443]
[1672725614417,10.08375594,1219.9,1219.6,38.98625329]
[1672725615575,10.69935594,1219.9,1219.6,38.98625329]
[1672725616154,5.6156,1219.9,1219.6,38.98625329]
[1672725617686,5.1156,1219.9,1219.6,38.98625329]
[1672725618725,10.19935594,1219.9,1219.6,38.98625329]
[1672725618937,12.02635594,1219.9,1219.6,38.98625329]
[1672725620573,12.02635594,1219.9,1219.6,31.97769]
[1672725620887,5.0,1219.8,1219.6,31.97769]
[1672725621877,5.0,1219.8,1219.5,37.37769148]
[1672725622087,6.813,1219.8,1219.5,37.37769148]
[1672725622525,6.813,1219.8,1219.5,10.65932]
[1672725622526,1.825,1219.7,1219.5,10.65932]
[1672725622777,1.827,1219.6,1219.4,3.0]
[1672725622983,1.821,1219.5,1219.4,10.66091]
[1672725623301,1.821,1219.5,1219.4,21.32189]
[1672725624015,6.321,1219.5,1219.4,21.32189]
[1672725624238,6.371,1219.5,1219.4,21.37681306]
[1672725625791,6.371,1219.5,1219.4,32.03779306]
[1672725626156,6.371,1219.5,1219.4,33.7139339]
[1672725626710,5.05,1219.5,1219.4,37.86279504]
[1672725626927,5.05,1219.5,1219.4,40.40895052]
[1672725627503,5.05,1219.5,1219.4,43.40895052]
[1672725628499,0.05,1219.5,1219.4,43.40895052]
[1672725628764,0.05,1219.5,1219.4,52.49095052]
[1672725628949,0.05,1219.5,1219.4,39.26008938]
[1672725630345,0.016,1219.6,1219.4,43.40895052]
[1672725630534,0.016,1219.6,1219.5,43.18616114]
[1672725630723,0.016,1219.6,1219.5,53.44878968]
[1672725630912,0.016,1219.6,1219.5,53.94194516]
[1672725631811,0.016,1219.6,1219.5,62.80484516]
[1672725632182,0.016,1219.6,1219.5,63.42064516]
[1672725632392,0.6156,1219.9,1219.6,5.0]
[1672725632758,5.69935594,1219.9,1219.7,21.3167]
[1672725632917,0.6156,1219.9,1219.7,21.3167]
[1672725633337,5.69935594,1219.9,1219.7,21.3167]
[1672725633544,5.0,1219.8,1219.7,21.3167]
[1672725634407,10.0,1219.8,1219.7,21.3167]
[1672725635389,10.0,1219.8,1219.7,10.65835]
[1672725635556,16.89975594,1219.8,1219.5,33.18239]
[1672725635771,16.89975594,1219.8,1219.5,43.84249]
[1672725636173,10.08375594,1219.8,1219.5,49.35984731]
[1672725636387,5.0,1219.8,1219.5,54.00186393]
[1672725636855,8.49726841,1219.8,1219.5,54.00186393]
[1672725637261,4.49726841,1219.8,1219.5,54.00186393]
[1672725638696,9.49726841,1219.8,1219.5,54.00186393]
[1672725638906,9.49726841,1219.8,1219.5,49.85300279]
[1672725639115,14.58102435,1219.8,1219.5,40.84249]
[1672725639383,15.19672435,1219.8,1219.5,40.84249]
[1672725639596,5.11296841,1219.8,1219.5,40.84249]
[1672725640694,10.19672435,1219.8,1219.5,40.84249]
[1672725640837,9.58102435,1219.8,1219.5,45.99825731]
[1672725643110,0.002,1219.6,1219.5,46.05018037]
[1672725643420,0.004,1219.6,1219.5,46.05318037]
[1672725645068,9.08502435,1219.8,1219.5,46.05318037]
[1672725646303,5.08375594,1219.8,1219.5,46.05318037]
[1672725646641,5.69945594,1219.8,1219.5,46.05318037]
[1672725646865,5.08375594,1219.8,1219.5,46.05318037]
[1672725647291,5.0,1219.7,1219.5,46.05318037]
[1672725648784,5.76135594,1219.9,1219.5,46.54633585]
[1672725649168,5.76135594,1219.9,1219.5,50.69519699]
[1672725649382,0.062,1219.9,1219.8,31.97244]
[1672725649566,5.062,1219.9,1219.8,36.735458]
[1672725651255,5.062,1219.9,1219.8,31.97244]
[1672725653511,10.14575594,1219.9,1219.8,31.97244]
[1672725654617,10.14575594,1219.9,1219.8,21.31496]
[1672725655214,5.062,1219.9,1219.8,21.31496]
[1672725655421,10.14575594,1219.9,1219.8,31.97244]
[1672725655630,10.14575594,1219.9,1219.8,10.65748]
[1672725655941,5.062,1219.9,1219.8,10.65748]
[1672725656108,10.14575594,1219.9,1219.8,10.65748]
[1672725656323,5.0,1219.8,1219.7,10.65826]
[1672725656575,13.22190901,1219.8,1219.7,10.65826]
[1672725656781,3.642,1219.8,1219.7,21.31661]
[1672725657094,1.815,1219.8,1219.7,31.97496]
[1672725657307,6.815,1219.8,1219.7,31.97496]
[1672725657684,6.815,1219.8,1219.7,21.31661]
[1672725659600,6.815,1219.8,1219.7,31.97496]
[1672725660710,11.89490901,1219.8,1219.7,31.97496]
[1672725661045,11.89490901,1219.8,1219.7,21.31661]
[1672725661257,6.815,1219.8,1219.7,21.31661]
[1672725661469,6.815,1219.8,1219.7,31.97496]
[1672725662686,6.815,1219.8,1219.7,32.02988306]
[1672725663243,6.815,1219.8,1219.7,36.29871137]
[1672725663454,5.0,1219.8,1219.7,36.29871137]
[1672725665033,5.14590901,1219.9,1219.7,36.29871137]
[1672725665281,0.066,1219.9,1219.7,36.29871137]
[1672725665673,5.14590901,1219.9,1219.7,36.29871137]
[1672725665865,5.14590901,1219.9,1219.7,14.98201137]
[1672725666077,5.14590901,1219.9,1219.7,0.05492306]
[1672725666326,8.64590901,1219.9,1219.7,0.05492306]
[1672725666663,10.07990901,1219.8,1219.7,0.05492306]
[1672725666830,10.07990901,1219.8,1219.7,21.37160306]
[1672725667249,10.07990901,1219.8,1219.7,32.02995306]
[1672725668810,28.75566,1219.8,1219.7,0.05492306]
[1672725669018,26.01986967,1219.8,1219.7,0.05492306]
[1672725669245,15.36238967,1219.8,1219.7,0.05492306]
[1672725669473,40.82621081,1219.8,1219.7,0.05492306]
[1672725669689,30.16873081,1219.8,1219.7,0.05492306]
[1672725671205,50.58321081,1219.8,1219.7,0.05492306]
[1672725671414,44.47752114,1219.8,1219.7,0.05492306]
[1672725672672,43.36552114,1219.8,1219.7,0.05492306]
[1672725674362,9.93,1219.8,1219.7,0.05492306]
[1672725674506,5.0,1219.8,1219.7,10.71327306]
[1672725674881,10.07931151,1219.8,1219.7,32.02997306]
[1672725675042,5.0,1219.8,1219.7,36.29884337]
[1672725675241,5.14531151,1219.9,1219.8,5.0]
[1672725675450,5.14531151,1219.9,1219.7,14.98214337]
[1672725675698,0.066,1219.9,1219.8,31.97244]
[1672725677448,5.066,1219.9,1219.8,32.46559548]
[1672725677657,5.066,1219.9,1219.8,36.86251389]
[1672725679494,0.066,1219.9,1219.8,36.86251389]
[1672725681154,0.052,1219.9,1219.8,36.88047425]
[1672725681369,8.72848301,1220.0,1219.8,36.91743695]
[1672725681900,5.0,1219.9,1219.8,36.91743695]
[1672725683470,5.0,1219.9,1219.8,37.99680329]
[1672725685155,5.0,1219.9,1219.8,27.33932329]
[1672725685369,5.0,1219.9,1219.8,16.68184329]
[1672725685585,5.0,1219.9,1219.8,37.99680329]
[1672725686160,5.0,1219.9,1219.8,27.33932329]
[1672725686378,5.0,1219.9,1219.8,37.99680329]
[1672725686697,5.0,1219.9,1219.8,33.1067294]
[1672725689049,5.0,1219.9,1219.8,22.4492494]
[1672725689267,5.0,1219.9,1219.8,33.1067294]
[1672725691046,4.95,1219.9,1219.8,33.1067294]
[1672725691714,4.95,1219.9,1219.8,36.137373]
[1672725691950,8.72848301,1220.0,1219.8,36.137373]
[1672725692161,3.6491715,1220.0,1219.8,36.137373]
[1672725692307,5.0,1219.9,1219.8,36.137373]
[1672725694834,5.0,1219.9,1219.8,4.164933]
[1672725695045,5.0,1219.9,1219.8,22.4492494]
[1672725695307,5.0,1219.9,1219.8,33.1067294]
[1672725695924,3.6491715,1220.0,1219.8,33.1067294]
[1672725696348,3.5991715,1220.0,1219.8,33.1067294]
[1672725697886,8.67848301,1220.0,1219.8,33.1067294]
[1672725698206,5.0,1219.9,1219.8,33.1067294]
[1672725699609,5.0,1219.9,1219.8,37.48315034]
[1672725699821,4.95,1219.9,1219.8,37.48315034]
[1672725702352,4.95,1219.9,1219.8,26.82567034]
[1672725702982,4.95,1219.9,1219.8,22.4492494]
[1672725703923,4.95,1219.9,1219.8,33.1067294]
[1672725707236,3.6651715,1220.0,1219.8,33.1067294]
[1672725707661,3.6651715,1220.0,1219.8,22.4492494]
[1672725708031,3.6651715,1220.0,1219.8,33.1067294]
[1672725708246,3.6151715,1220.0,1219.8,33.1067294]
[1672725710396,5.0,1219.9,1219.8,33.1067294]
[1672725713182,10.07931151,1219.9,1219.8,33.1067294]
[1672725716182,10.02931151,1219.9,1219.8,33.1067294]
[1672725716601,10.02931151,1219.9,1219.8,22.4492494]
[1672725717701,10.02931151,1219.9,1219.8,33.1067294]
[1672725717970,10.07931151,1219.9,1219.8,33.1067294]
[1672725719382,10.02931151,1219.9,1219.8,33.1067294]
[1672725722655,10.02931151,1219.9,1219.8,37.5231996]
[1672725725789,8.64448301,1220.0,1219.8,37.5231996]
[1672725726987,5.0,1219.9,1219.8,37.5231996]
[1672725729422,3.6151715,1220.0,1219.8,54.38819158]
[1672725729593,3.6151715,1220.0,1219.9,44.71579163]
[1672725729801,3.6151715,1220.0,1219.9,49.49895781]
[1672725730013,3.6151715,1220.0,1219.9,57.68510402]
[1672725730251,5.09136411,1220.4,1219.9,57.64188138]
[1672725730462,5.09136411,1220.4,1220.3,1.809]
[1672725730463,0.0620526,1220.4,1220.3,1.809]
[1672725730756,0.0120526,1220.4,1220.3,2.1716]
[1672725730917,0.0120526,1220.4,1220.3,23.47782]
[1672725731409,0.0120526,1220.4,1220.3,23.97097548]
[1672725731410,5.0120526,1220.4,1220.3,23.97097548]
[1672725731815,0.0120526,1220.4,1220.3,23.97097548]
[1672725733187,0.0120526,1220.4,1220.3,24.37800398]
[1672725733598,0.0120526,1220.4,1220.3,35.03111398]
[1672725735949,0.7112241,1220.6,1220.4,5.0]
[1672725736144,5.0,1220.5,1220.4,36.2598314]
[1672725737598,5.0,1220.5,1220.4,31.95672]
[1672725738642,5.0,1220.5,1220.3,13.65311]
[1672725738856,26.30274,1220.5,1220.3,3.0]
[1672725739193,0.002,1220.4,1220.3,34.95919]
[1672725739592,0.002,1220.4,1220.3,31.95919]
[1672725739804,5.002,1220.4,1220.3,10.65297]
[1672725740223,5.002,1220.4,1220.2,10.65368]
[1672725740541,10.032,1220.4,1220.2,10.70839306]
[1672725740753,5.032,1220.4,1220.2,32.01637306]
[1672725741645,4.032,1220.4,1220.2,21.36238306]
[1672725741839,9.032,1220.4,1220.2,21.36238306]
[1672725742047,7.032,1220.4,1220.2,21.36238306]
[1672725742465,4.032,1220.4,1220.2,0.05492306]
[1672725742678,14.68424,1220.4,1220.2,0.05492306]
[1672725742868,5.482,1220.4,1220.2,0.05492306]
[1672725743064,11.12671151,1220.4,1220.2,0.05492306]
[1672725743302,6.46831151,1220.3,1220.2,0.05492306]
[1672725743650,27.12142151,1220.3,1220.2,0.05492306]
[1672725744678,16.46831151,1220.3,1220.2,0.05492306]
[1672725745307,37.77453151,1220.3,1220.2,0.05492306]
[1672725746143,27.12142151,1220.3,1220.2,0.05492306]
[1672725748140,27.73682151,1220.3,1220.2,0.05492306]
[1672725750044,38.38993151,1220.3,1220.2,0.05492306]
[1672725750593,27.73682151,1220.3,1220.2,0.05492306]
[1672725750774,38.38993151,1220.3,1220.2,0.05492306]
[1672725750975,27.73682151,1220.3,1220.2,0.05492306]
[1672725751655,22.73682151,1220.3,1220.2,0.05492306]
[1672725752712,27.73682151,1220.3,1220.2,0.05492306]
[1672725753071,38.38993151,1220.3,1220.2,0.05492306]
[1672725755408,38.4263255,1220.3,1220.2,0.05492306]
[1672725756038,33.36062,1220.3,1220.2,0.05492306]
[1672725756254,27.77370318,1220.3,1220.2,0.05492306]
[1672725757401,10.68159318,1220.3,1220.2,0.05492306]
[1672725757609,10.06619318,1220.3,1220.2,32.01689306]
[1672725757818,5.0,1220.3,1220.2,21.36290306]
[1672725758485,10.06619318,1220.3,1220.2,21.36290306]
[1672725758697,10.68159318,1220.3,1220.2,21.36290306]
[1672725761726,9.68159318,1220.3,1220.2,21.36290306]
[1672725762162,9.06619318,1220.3,1220.2,21.36290306]
[1672725764220,4.0,1220.3,1220.2,21.36290306]
[1672725764434,9.06619318,1220.3,1220.2,21.36290306]
[1672725765918,9.06619318,1220.3,1220.2,10.70891306]
[1672725772110,4.0,1220.3,1220.2,32.01689306]
[1672725772754,4.0,1220.3,1220.2,36.28400637]
[1672725773009,5.06619318,1220.3,1220.2,38.21816185]
[1672725773233,0.066,1220.4,1220.2,41.21816185]
[1672725773438,0.066,1220.4,1220.2,43.51285879]
[1672725773765,0.066,1220.4,1220.3,5.0]
[1672725773934,0.066,1220.4,1220.3,41.28114619]
[1672725774771,0.066,1220.4,1220.3,36.28114619]
[1672725775075,5.066,1220.4,1220.3,36.28114619]
[1672725775945,0.066,1220.4,1220.3,36.28114619]
[1672725782422,0.7196356,1220.6,1220.4,5.0]
[1672725782652,5.0,1220.5,1220.4,31.04109628]
[1672725782903,5.0,1220.5,1220.4,41.69333628]
[1672725783071,0.7196356,1220.6,1220.4,41.69333628]
[1672725783284,0.7196356,1220.6,1220.4,45.89712048]
[1672725783848,0.7196356,1220.6,1220.4,41.74825934]
[1672725784059,0.7196356,1220.6,1220.4,26.09601934]
[1672725784418,0.7196356,1220.6,1220.4,36.74825934]
[1672725787166,0.7196356,1220.6,1220.4,26.09601934]
[1672725787371,5.0,1220.5,1220.4,0.05492306]
[1672725788006,5.0,1220.5,1220.4,10.70716306]
[1672725788471,5.0,1220.5,1220.4,32.01164306]
[1672725789881,5.0,1220.5,1220.4,0.05492306]
[1672725790253,5.0,1220.5,1220.4,10.70716306]
[1672725790402,5.0,1220.5,1220.4,32.01164306]
[1672725794501,0.7196356,1220.6,1220.4,36.32738991]
[1672725794716,5.0,1220.5,1220.4,36.32738991]
[1672725795822,5.0,1220.5,1220.4,32.01164306]
[1672725797711,0.7196356,1220.6,1220.4,39.54065968]
[1672725797923,5.6e-06,1220.6,1220.5,12.76416114]
[1672725798184,5.6e-06,1220.6,1220.5,46.54241]
[1672725798392,5.6e-06,1220.6,1220.5,27.32090601]
[1672725798560,5.6e-06,1220.6,1220.5,6.01816601]
[1672725798768,5.6e-06,1220.6,1220.5,10.65137]
[1672725799194,5.06619878,1220.6,1220.5,10.65137]
[1672725799636,5.06619878,1220.6,1220.4,0.05492306]
[1672725799845,5.0,1220.5,1220.4,0.05492306]
[1672725800066,7.11949878,1220.6,1220.4,0.05492306]
[1672725800246,12.11949878,1220.6,1220.4,0.05492306]
[1672725801103,11.61949878,1220.6,1220.4,0.05492306]
[1672725801311,5.0,1220.5,1220.4,0.05492306]
[1672725802811,5.0,1220.5,1220.4,1.46192306]
[1672725803028,5.0,1220.5,1220.4,35.84681785]
[1672725803169,0.016,1220.8,1220.4,41.74681785]
[1672725803383,7.9309,1220.9,1220.4,48.87931785]
[1672725803641,7.9309,1220.9,1220.5,5.0]
[1672725803858,6.2717509,1221.0,1220.6,31.95096]
[1672725804173,6.1057509,1220.8,1220.6,31.95096]
[1672725804536,0.166,1221.0,1220.7,5.0]
[1672725804799,0.166,1221.0,1220.8,31.94625]
[1672725805010,5.0,1220.9,1220.8,31.94625]
[1672725805167,5.06902346,1220.9,1220.8,35.54019055]
[1672725805380,5.23502346,1221.0,1220.8,35.54019055]
[1672725805595,5.23502346,1221.0,1220.9,5.0]
[1672725805827,5.23502346,1221.0,1220.9,41.0469746]
[1672725806006,10.23502346,1221.0,1220.9,41.0469746]
[1672725806864,10.23502346,1221.0,1220.9,36.0469746]
[1672725807086,5.166,1221.0,1220.9,36.0469746]
[1672725809369,10.23502346,1221.0,1220.9,36.0469746]
[1672725809562,5.166,1221.0,1220.9,36.0469746]
[1672725810197,0.166,1221.0,1220.9,36.0469746]
[1672725811018,0.1,1221.0,1220.9,31.99856306]
[1672725811386,0.1,1221.0,1220.9,32.49171854]
[1672725812339,0.2551715,1221.2,1220.9,38.09057968]
[1672725812589,0.2551715,1221.2,1220.9,31.99856306]
[1672725812590,5.32419496,1221.2,1220.9,31.99856306]
[1672725812720,5.32419496,1221.2,1220.9,38.87591842]
[1672725812931,0.2551715,1221.2,1220.9,43.02477956]
[1672725813372,0.2551715,1221.2,1221.0,4.14886114]
[1672725813580,0.2551715,1221.2,1221.1,41.08725114]
[1672725813751,5.2551715,1221.2,1221.1,36.08725114]
[1672725813969,5.2551715,1221.2,1221.1,25.96560311]
[1672725814325,0.2551715,1221.2,1221.1,25.96560311]
[1672725814534,0.2551715,1221.2,1221.1,36.61173311]
[1672725815882,0.2551715,1221.2,1221.1,40.76059425]
[1672725816811,0.2551715,1221.2,1221.1,36.61173311]
[1672725817021,0.2551715,1221.2,1221.1,15.31947311]
[1672725817250,0.2551715,1221.2,1221.1,25.96560311]
[1672725817713,0.2551715,1221.2,1221.1,36.61173311]
[1672725818554,0.2551715,1221.2,1221.1,4.67334311]
[1672725818718,0.2551715,1221.2,1221.0,29.84626]
[1672725818930,0.2551715,1221.2,1221.1,21.29226]
[1672725819285,2.6011715,1221.2,1221.0,29.84608]
[1672725819501,2.6011715,1221.2,1221.0,19.19979]
[1672725819650,2.6011715,1221.2,1221.0,29.84631]
[1672725820069,2.6011715,1221.2,1220.9,10.70197306]
[1672725820325,2.6011715,1221.2,1220.9,35.49707437]
[1672725820759,0.2551715,1221.2,1220.9,35.49707437]
[1672725821443,0.2551715,1221.2,1221.0,5.0]
[1672725821655,0.2551715,1221.2,1221.1,42.58452]
[1672725821886,5.2551715,1221.2,1221.1,42.58452]
[1672725822093,5.2551715,1221.2,1221.1,21.29226]
[1672725822339,5.2551715,1221.2,1221.1,10.64613]
[1672725822552,5.2551715,1221.2,1221.0,21.29345]
[1672725822765,5.2551715,1221.2,1221.1,31.93839]